[Event "Titled Tuesday Blitz January 17 Late 2023"]
[White "Makridis, Dimitrios"]
[Black "Artemiev, Vladislav"]
[WhiteFideId "25864475"]
[BlackFideId "24101605"]
[WhiteElo "2356"]
[BlackElo "2701"]
[Result "0-1"]
[Round "07"]
[TimeControl "180+2"]
[Date "2023.01.17"]
[WhiteClock "0:00:07"]
[BlackClock "0:00:06"]

1. e4 {[%clk 0:03:00]}  c5 {[%clk 0:02:59]} 2. Nf3 {[%clk 0:03:00]}  d6 {[%clk 0:02:59]} 3. d4 {[%clk 0:03:01]}  cxd4 {[%clk 0:02:59]} 4. Nxd4 {[%clk 0:03:02]}  Nf6 {[%clk 0:03:00]} 5. Nc3 {[%clk 0:03:03]}  a6 {[%clk 0:03:00]} 6. h3 {[%clk 0:03:03]}  e6 {[%clk 0:02:59]} 7. g4 {[%clk 0:03:03]}  h6 {[%clk 0:02:59]} 8. Be3 {[%clk 0:03:01]}  b5 {[%clk 0:02:54]} 9. Bg2 {[%clk 0:02:50]}  Bb7 {[%clk 0:02:53]} 10. a3 {[%clk 0:02:50]}  Nbd7 {[%clk 0:02:53]} 11. h4 {[%clk 0:02:33]}  Ne5 {[%clk 0:02:17]} 12. g5 {[%clk 0:02:31]}  hxg5 {[%clk 0:02:17]} 13. hxg5 {[%clk 0:02:32]}  Rxh1+ {[%clk 0:02:17]} 14. Bxh1 {[%clk 0:02:31]}  Nfd7 {[%clk 0:02:17]} 15. Qh5 {[%clk 0:02:16]}  g6 {[%clk 0:02:11]} 16. Qh7 {[%clk 0:02:05]}  Qe7 {[%clk 0:01:33]} 17. f4 {[%clk 0:01:48]}  Nc4 {[%clk 0:01:31]} 18. Bc1 {[%clk 0:01:48]}  Rc8 {[%clk 0:01:09]} 19. b3 {[%clk 0:01:27]}  Ncb6 {[%clk 0:01:07]} 20. Bb2 {[%clk 0:01:25]}  e5 {[%clk 0:01:07]} 21. Nf3 {[%clk 0:01:14]}  exf4 {[%clk 0:00:42]} 22. O-O-O {[%clk 0:01:14]}  Ne5 {[%clk 0:00:43]} 23. Nxe5 {[%clk 0:00:52]}  dxe5 {[%clk 0:00:40]} 24. Kb1 {[%clk 0:00:53]}  Qxg5 {[%clk 0:00:36]} 25. Nd5 {[%clk 0:00:43]}  Bxd5 {[%clk 0:00:24]} 26. exd5 {[%clk 0:00:44]}  Nd7 {[%clk 0:00:21]} 27. Qh3 {[%clk 0:00:32]}  Qf5 {[%clk 0:00:17]} 28. Qh2 {[%clk 0:00:29]}  f3 {[%clk 0:00:15]} 29. Qf2 {[%clk 0:00:21]}  Bc5 {[%clk 0:00:14]} 30. Qxf3 {[%clk 0:00:21]}  Qxf3 {[%clk 0:00:15]} 31. Bxf3 {[%clk 0:00:22]}  Bd6 {[%clk 0:00:14]} 32. Be2 {[%clk 0:00:20]}  f5 {[%clk 0:00:13]} 33. Rh1 {[%clk 0:00:19]}  Nf6 {[%clk 0:00:10]} 34. c4 {[%clk 0:00:20]}  bxc4 {[%clk 0:00:07]} 35. Bxc4 {[%clk 0:00:21]}  Ke7 {[%clk 0:00:05]} 36. Bxa6 {[%clk 0:00:20]}  Rc5 {[%clk 0:00:04]} 37. Bc4 {[%clk 0:00:18]}  Nxd5 {[%clk 0:00:04]} 38. Rh7+ {[%clk 0:00:17]}  Kf6 {[%clk 0:00:04]} 39. Rd7 {[%clk 0:00:17]}  Ke6 {[%clk 0:00:04]} 40. Rg7 {[%clk 0:00:18]}  Be7 {[%clk 0:00:02]} 41. Rxg6+ {[%clk 0:00:17]}  Bf6 {[%clk 0:00:03]} 42. a4 {[%clk 0:00:15]}  f4 {[%clk 0:00:02]} 43. Rg8 {[%clk 0:00:07]}  Kf5 {[%clk 0:00:02]} 44. Rf8 {[%clk 0:00:07]}  Ne3 {[%clk 0:00:01]} 45. Bd3+ {[%clk 0:00:08]}  Ke6 {[%clk 0:00:01]} 46. b4 {[%clk 0:00:07]}  Rd5 {[%clk 0:00:02]} 47. Be4 {[%clk 0:00:07]}  Rd1+ {[%clk 0:00:03]} 48. Ka2 {[%clk 0:00:07]}  Rd2 {[%clk 0:00:03]} 49. Kb3 {[%clk 0:00:07]}  Be7 {[%clk 0:00:03]} 50. Bc3 {[%clk 0:00:07]}  Re2 {[%clk 0:00:02]} 51. Rb8 {[%clk 0:00:06]}  Nd5 {[%clk 0:00:02]} 52. Bd3 {[%clk 0:00:06]}  Re3 {[%clk 0:00:02]} 53. Kc2 {[%clk 0:00:06]}  Nxc3 {[%clk 0:00:02]} 54. Kxc3 {[%clk 0:00:06]}  e4 {[%clk 0:00:03]} 55. Kd4 {[%clk 0:00:06]}  exd3 {[%clk 0:00:03]} 56. Rb6+ {[%clk 0:00:06]}  Bd6 {[%clk 0:00:03]} 57. Kc3 {[%clk 0:00:06]}  f3 {[%clk 0:00:04]} 58. Kd2 {[%clk 0:00:07]}  f2 {[%clk 0:00:04]} 59. Kxe3 {[%clk 0:00:06]}  f1=Q {[%clk 0:00:05]} 60. Kd4 {[%clk 0:00:07]}  Qf2+ {[%clk 0:00:05]} 61. Kxd3 {[%clk 0:00:07]}  Qxb6 {[%clk 0:00:06]} 0-1


[Site "https://www.chess.com"]

[Event "Titled Tuesday Blitz January 17 Late 2023"]
[White "Nasuta, Grzegorz"]
[Black "Martinez Alcantara, Jose Eduardo"]
[WhiteFideId "1141686"]
[BlackFideId "3805662"]
[WhiteElo "2552"]
[BlackElo "2619"]
[Result "0-1"]
[Round "07"]
[TimeControl "180+2"]
[Date "2023.01.17"]
[WhiteClock "0:00:05"]
[BlackClock "0:00:18"]

1. e4 {[%clk 0:02:58]}  c5 {[%clk 0:03:00]} 2. Nf3 {[%clk 0:02:58]}  Nc6 {[%clk 0:03:00]} 3. Bb5 {[%clk 0:02:57]}  d6 {[%clk 0:02:58]} 4. O-O {[%clk 0:02:55]}  Bd7 {[%clk 0:02:58]} 5. Re1 {[%clk 0:02:49]}  a6 {[%clk 0:02:57]} 6. Bf1 {[%clk 0:02:42]}  Nf6 {[%clk 0:02:53]} 7. c3 {[%clk 0:02:41]}  Bg4 {[%clk 0:02:53]} 8. h3 {[%clk 0:02:39]}  Bxf3 {[%clk 0:02:53]} 9. Qxf3 {[%clk 0:02:40]}  g6 {[%clk 0:02:53]} 10. d3 {[%clk 0:02:40]}  Bg7 {[%clk 0:02:53]} 11. Be3 {[%clk 0:02:40]}  O-O {[%clk 0:02:53]} 12. Nd2 {[%clk 0:02:40]}  Nd7 {[%clk 0:02:54]} 13. Qd1 {[%clk 0:02:40]}  b5 {[%clk 0:02:45]} 14. Nf3 {[%clk 0:02:41]}  Qc7 {[%clk 0:02:46]} 15. d4 {[%clk 0:02:41]}  Rab8 {[%clk 0:02:46]} 16. Qd2 {[%clk 0:02:33]}  Rfe8 {[%clk 0:02:45]} 17. Rac1 {[%clk 0:02:30]}  Na5 {[%clk 0:02:38]} 18. b3 {[%clk 0:02:30]}  Nc6 {[%clk 0:02:32]} 19. Red1 {[%clk 0:02:30]}  Rbd8 {[%clk 0:02:28]} 20. Bh6 {[%clk 0:02:06]}  Nf6 {[%clk 0:02:24]} 21. Bxg7 {[%clk 0:01:25]}  Kxg7 {[%clk 0:02:25]} 22. Qe3 {[%clk 0:01:22]}  e5 {[%clk 0:02:25]} 23. dxc5 {[%clk 0:01:11]}  dxc5 {[%clk 0:02:26]} 24. Qxc5 {[%clk 0:01:11]}  Nxe4 {[%clk 0:02:23]} 25. Qe3 {[%clk 0:01:12]}  Nf6 {[%clk 0:02:23]} 26. c4 {[%clk 0:01:10]}  b4 {[%clk 0:02:12]} 27. g3 {[%clk 0:00:37]}  Qa5 {[%clk 0:01:54]} 28. Bg2 {[%clk 0:00:34]}  Nd4 {[%clk 0:01:31]} 29. Nxd4 {[%clk 0:00:31]}  exd4 {[%clk 0:01:31]} 30. Qd2 {[%clk 0:00:31]}  Qc5 {[%clk 0:01:29]} 31. Qd3 {[%clk 0:00:24]}  Re7 {[%clk 0:01:17]} 32. Rc2 {[%clk 0:00:24]}  a5 {[%clk 0:01:17]} 33. Rcd2 {[%clk 0:00:24]}  h5 {[%clk 0:01:13]} 34. Qf3 {[%clk 0:00:17]}  Ne4 {[%clk 0:01:08]} 35. Qxe4 {[%clk 0:00:15]}  Rxe4 {[%clk 0:01:08]} 36. Bxe4 {[%clk 0:00:16]}  a4 {[%clk 0:00:55]} 37. Bd5 {[%clk 0:00:15]}  a3 {[%clk 0:00:56]} 38. Rxd4 {[%clk 0:00:15]}  Re8 {[%clk 0:00:55]} 39. R4d2 {[%clk 0:00:14]}  h4 {[%clk 0:00:52]} 40. Kg2 {[%clk 0:00:12]}  hxg3 {[%clk 0:00:52]} 41. Kxg3 {[%clk 0:00:11]}  Qc7+ {[%clk 0:00:51]} 42. Kg2 {[%clk 0:00:11]}  Re5 {[%clk 0:00:52]} 43. Rd3 {[%clk 0:00:11]}  Rg5+ {[%clk 0:00:52]} 44. Rg3 {[%clk 0:00:11]}  Rxg3+ {[%clk 0:00:46]} 45. fxg3 {[%clk 0:00:12]}  Qe5 {[%clk 0:00:45]} 46. Rd2 {[%clk 0:00:13]}  Qc3 {[%clk 0:00:42]} 47. Rf2 {[%clk 0:00:13]}  f5 {[%clk 0:00:42]} 48. h4 {[%clk 0:00:14]}  Kh6 {[%clk 0:00:41]} 49. Kh2 {[%clk 0:00:14]}  Qd4 {[%clk 0:00:35]} 50. Kg2 {[%clk 0:00:14]}  Qe5 {[%clk 0:00:33]} 51. Kh2 {[%clk 0:00:12]}  Qd6 {[%clk 0:00:28]} 52. Kg2 {[%clk 0:00:12]}  Qe7 {[%clk 0:00:28]} 53. Kh2 {[%clk 0:00:12]}  f4 {[%clk 0:00:28]} 54. gxf4 {[%clk 0:00:08]}  Qxh4+ {[%clk 0:00:29]} 55. Kg2 {[%clk 0:00:08]}  Qg4+ {[%clk 0:00:30]} 56. Kf1 {[%clk 0:00:09]}  Kg7 {[%clk 0:00:27]} 57. Ke1 {[%clk 0:00:05]}  Qg1+ {[%clk 0:00:27]} 58. Ke2 {[%clk 0:00:05]}  Qg3 {[%clk 0:00:27]} 59. Kf1 {[%clk 0:00:05]}  Kf6 {[%clk 0:00:26]} 60. Ke1 {[%clk 0:00:05]}  Qc3+ {[%clk 0:00:24]} 61. Kf1 {[%clk 0:00:05]}  Kf5 {[%clk 0:00:25]} 62. Kg2 {[%clk 0:00:05]}  Kf6 {[%clk 0:00:22]} 63. Kh2 {[%clk 0:00:04]}  Ke7 {[%clk 0:00:22]} 64. Kg2 {[%clk 0:00:05]}  Kd6 {[%clk 0:00:22]} 65. f5 {[%clk 0:00:04]}  gxf5 {[%clk 0:00:19]} 66. Rxf5 {[%clk 0:00:05]}  Qg7+ {[%clk 0:00:18]} 67. Kf1 {[%clk 0:00:04]}  Qa1+ {[%clk 0:00:17]} 68. Kg2 {[%clk 0:00:04]}  Qxa2+ {[%clk 0:00:18]} 69. Rf2 {[%clk 0:00:04]}  Qxf2+ {[%clk 0:00:17]} 70. Kxf2 {[%clk 0:00:05]}  a2 {[%clk 0:00:18]} 0-1


[Site "https://www.chess.com"]

[Event "Titled Tuesday Blitz January 17 Late 2023"]
[White "Paravyan, David"]
[Black "Yuan, Qingyu"]
[WhiteFideId "4194985"]
[BlackFideId "8609772"]
[WhiteElo "2601"]
[BlackElo "2373"]
[Result "1-0"]
[Round "07"]
[TimeControl "180+2"]
[Date "2023.01.17"]
[WhiteClock "0:00:28"]
[BlackClock "0:00:16"]

1. c4 {[%clk 0:03:00]}  e6 {[%clk 0:02:59]} 2. Nc3 {[%clk 0:03:00]}  d5 {[%clk 0:03:00]} 3. d4 {[%clk 0:03:01]}  Be7 {[%clk 0:03:00]} 4. cxd5 {[%clk 0:03:00]}  exd5 {[%clk 0:03:00]} 5. Bf4 {[%clk 0:03:01]}  c6 {[%clk 0:03:01]} 6. e3 {[%clk 0:03:01]}  Bf5 {[%clk 0:03:01]} 7. Nge2 {[%clk 0:03:01]}  Nd7 {[%clk 0:02:56]} 8. Ng3 {[%clk 0:03:00]}  Bg6 {[%clk 0:02:53]} 9. Rc1 {[%clk 0:02:52]}  Ngf6 {[%clk 0:02:39]} 10. Bd3 {[%clk 0:02:51]}  Bxd3 {[%clk 0:02:25]} 11. Qxd3 {[%clk 0:02:52]}  O-O {[%clk 0:02:24]} 12. O-O {[%clk 0:02:51]}  Re8 {[%clk 0:02:22]} 13. f3 {[%clk 0:02:45]}  c5 {[%clk 0:02:00]} 14. Be5 {[%clk 0:02:30]}  Qb6 {[%clk 0:01:36]} 15. b3 {[%clk 0:01:43]}  Qa5 {[%clk 0:01:14]} 16. Qb5 {[%clk 0:01:31]}  Qb6 {[%clk 0:00:52]} 17. Rfd1 {[%clk 0:01:05]}  Bf8 {[%clk 0:00:44]} 18. f4 {[%clk 0:00:49]}  Ng4 {[%clk 0:00:45]} 19. Qxd7 {[%clk 0:00:42]}  Nxe3 {[%clk 0:00:40]} 20. Nxd5 {[%clk 0:00:38]}  Nxd5 {[%clk 0:00:39]} 21. Qxd5 {[%clk 0:00:39]}  Rad8 {[%clk 0:00:34]} 22. Qc4 {[%clk 0:00:37]}  cxd4 {[%clk 0:00:27]} 23. Bc7 {[%clk 0:00:37]}  Qf6 {[%clk 0:00:23]} 24. Bxd8 {[%clk 0:00:38]}  Rxd8 {[%clk 0:00:24]} 25. Rd3 {[%clk 0:00:36]}  Qxf4 {[%clk 0:00:23]} 26. Rf1 {[%clk 0:00:36]}  Qd6 {[%clk 0:00:19]} 27. Qxf7+ {[%clk 0:00:36]}  Kh8 {[%clk 0:00:20]} 28. Ne4 {[%clk 0:00:36]}  Qb4 {[%clk 0:00:19]} 29. Rh3 {[%clk 0:00:27]}  d3 {[%clk 0:00:16]} 30. Rxh7+ {[%clk 0:00:27]}  Kxh7 {[%clk 0:00:16]} 31. Nf6+ {[%clk 0:00:28]} 1-0


[Site "https://www.chess.com"]

[Event "Titled Tuesday Blitz January 17 Late 2023"]
[White "Zierk, Steven"]
[Black "Leitao, Rafael"]
[WhiteFideId "2034255"]
[BlackFideId "2101246"]
[WhiteElo "2488"]
[BlackElo "2592"]
[Result "1-0"]
[Round "07"]
[TimeControl "180+2"]
[Date "2023.01.17"]
[WhiteClock "0:01:37"]
[BlackClock "0:00:33"]

1. e4 {[%clk 0:03:00]}  c5 {[%clk 0:02:55]} 2. Nf3 {[%clk 0:03:01]}  d6 {[%clk 0:02:55]} 3. d4 {[%clk 0:03:01]}  cxd4 {[%clk 0:02:55]} 4. Nxd4 {[%clk 0:03:02]}  Nf6 {[%clk 0:02:56]} 5. Nc3 {[%clk 0:03:02]}  Nc6 {[%clk 0:02:56]} 6. Bg5 {[%clk 0:03:02]}  e6 {[%clk 0:02:56]} 7. Qd2 {[%clk 0:03:02]}  a6 {[%clk 0:02:56]} 8. O-O-O {[%clk 0:03:02]}  Bd7 {[%clk 0:02:52]} 9. f4 {[%clk 0:03:02]}  Be7 {[%clk 0:02:51]} 10. Nf3 {[%clk 0:03:01]}  b5 {[%clk 0:02:50]} 11. e5 {[%clk 0:02:58]}  b4 {[%clk 0:02:50]} 12. exf6 {[%clk 0:02:54]}  bxc3 {[%clk 0:02:50]} 13. Qxc3 {[%clk 0:02:55]}  gxf6 {[%clk 0:02:50]} 14. Bh4 {[%clk 0:02:40]}  Rg8 {[%clk 0:02:49]} 15. g3 {[%clk 0:02:37]}  Rb8 {[%clk 0:02:36]} 16. Bxa6 {[%clk 0:02:32]}  Nb4 {[%clk 0:02:27]} 17. Bc4 {[%clk 0:02:32]}  d5 {[%clk 0:01:53]} 18. Bb3 {[%clk 0:02:29]}  Rc8 {[%clk 0:01:24]} 19. Qd4 {[%clk 0:02:20]}  Nc6 {[%clk 0:01:22]} 20. Qe3 {[%clk 0:02:12]}  Na5 {[%clk 0:01:20]} 21. Nd4 {[%clk 0:02:11]}  Nxb3+ {[%clk 0:01:18]} 22. Nxb3 {[%clk 0:02:09]}  Rc4 {[%clk 0:01:12]} 23. Rd4 {[%clk 0:02:05]}  Qc7 {[%clk 0:01:11]} 24. Rxc4 {[%clk 0:02:04]}  dxc4 {[%clk 0:01:10]} 25. Nd4 {[%clk 0:02:04]}  c3 {[%clk 0:00:56]} 26. Qxc3 {[%clk 0:02:00]}  Qxc3 {[%clk 0:00:56]} 27. bxc3 {[%clk 0:02:01]}  Ba3+ {[%clk 0:00:54]} 28. Kd2 {[%clk 0:02:00]}  Ke7 {[%clk 0:00:53]} 29. Rb1 {[%clk 0:01:54]}  Ra8 {[%clk 0:00:45]} 30. Rb7 {[%clk 0:01:54]}  Bc5 {[%clk 0:00:40]} 31. Bxf6+ {[%clk 0:01:51]}  Kxf6 {[%clk 0:00:39]} 32. Rxd7 {[%clk 0:01:52]}  Rxa2 {[%clk 0:00:40]} 33. Nf3 {[%clk 0:01:51]}  Ra1 {[%clk 0:00:35]} 34. Ng5 {[%clk 0:01:38]}  h6 {[%clk 0:00:33]} 35. Ne4+ {[%clk 0:01:37]} 1-0


[Site "https://www.chess.com"]

[Event "Titled Tuesday Blitz January 17 Late 2023"]
[White "Nazari, Arad"]
[Black "Bortnyk, Mykola"]
[WhiteFideId "12577324"]
[BlackFideId "14120836"]
[WhiteElo "2367"]
[BlackElo "2425"]
[Result "0-1"]
[Round "07"]
[TimeControl "180+2"]
[Date "2023.01.17"]
[WhiteClock "0:00:02"]
[BlackClock "0:00:16"]

1. e4 {[%clk 0:03:00]}  Nf6 {[%clk 0:02:59]} 2. e5 {[%clk 0:03:00]}  Nd5 {[%clk 0:03:00]} 3. d4 {[%clk 0:03:01]}  d6 {[%clk 0:03:00]} 4. c4 {[%clk 0:03:01]}  Nb6 {[%clk 0:03:00]} 5. f4 {[%clk 0:03:02]}  dxe5 {[%clk 0:03:00]} 6. fxe5 {[%clk 0:03:03]}  Nc6 {[%clk 0:03:00]} 7. Be3 {[%clk 0:03:03]}  Bf5 {[%clk 0:03:00]} 8. Nc3 {[%clk 0:03:03]}  e6 {[%clk 0:02:57]} 9. Nf3 {[%clk 0:03:03]}  Qd7 {[%clk 0:02:57]} 10. Be2 {[%clk 0:03:03]}  O-O-O {[%clk 0:02:57]} 11. O-O {[%clk 0:02:48]}  Kb8 {[%clk 0:02:57]} 12. c5 {[%clk 0:02:10]}  Nd5 {[%clk 0:02:56]} 13. Nxd5 {[%clk 0:02:07]}  Qxd5 {[%clk 0:02:57]} 14. Qc1 {[%clk 0:01:54]}  f6 {[%clk 0:02:53]} 15. Bc4 {[%clk 0:01:46]}  Qd7 {[%clk 0:02:46]} 16. Qc3 {[%clk 0:01:41]}  Be7 {[%clk 0:02:20]} 17. b4 {[%clk 0:01:38]}  fxe5 {[%clk 0:02:08]} 18. b5 {[%clk 0:01:39]}  exd4 {[%clk 0:01:44]} 19. bxc6 {[%clk 0:01:39]}  dxc3 {[%clk 0:01:44]} 20. cxd7 {[%clk 0:01:39]}  Rxd7 {[%clk 0:01:45]} 21. Ne5 {[%clk 0:01:33]}  Rd2 {[%clk 0:01:35]} 22. Bxd2 {[%clk 0:01:17]}  cxd2 {[%clk 0:01:36]} 23. Rad1 {[%clk 0:01:15]}  Bxc5+ {[%clk 0:01:35]} 24. Kh1 {[%clk 0:01:15]}  Rd8 {[%clk 0:01:29]} 25. Nf3 {[%clk 0:01:02]}  Be3 {[%clk 0:01:26]} 26. Bb3 {[%clk 0:00:58]}  c5 {[%clk 0:01:17]} 27. Ne5 {[%clk 0:00:54]}  Kc7 {[%clk 0:01:02]} 28. Nc4 {[%clk 0:00:53]}  Bh6 {[%clk 0:00:59]} 29. Rf2 {[%clk 0:00:37]}  Bg4 {[%clk 0:00:53]} 30. Rf7+ {[%clk 0:00:33]}  Kb8 {[%clk 0:00:48]} 31. Na5 {[%clk 0:00:28]}  Bxd1 {[%clk 0:00:38]} 32. Bxd1 {[%clk 0:00:28]}  Rd3 {[%clk 0:00:27]} 33. Rxb7+ {[%clk 0:00:25]}  Kc8 {[%clk 0:00:28]} 34. Rb1 {[%clk 0:00:19]}  Rc3 {[%clk 0:00:24]} 35. Nb3 {[%clk 0:00:06]}  c4 {[%clk 0:00:22]} 36. Nxd2 {[%clk 0:00:01]}  Bxd2 {[%clk 0:00:23]} 37. Bf3 {[%clk 0:00:02]}  Rxf3 {[%clk 0:00:18]} 38. gxf3 {[%clk 0:00:01]}  c3 {[%clk 0:00:19]} 39. Rb4 {[%clk 0:00:01]}  Kd7 {[%clk 0:00:18]} 40. Rc4 {[%clk 0:00:02]}  Kd6 {[%clk 0:00:19]} 41. Kg2 {[%clk 0:00:03]}  Kd5 {[%clk 0:00:20]} 42. Rc7 {[%clk 0:00:03]}  Kd4 {[%clk 0:00:17]} 43. Kf2 {[%clk 0:00:04]}  Kd3 {[%clk 0:00:18]} 44. Rxg7 {[%clk 0:00:03]}  Be3+ {[%clk 0:00:14]} 45. Ke1 {[%clk 0:00:03]}  c2 {[%clk 0:00:15]} 46. Rd7+ {[%clk 0:00:03]}  Bd4 {[%clk 0:00:15]} 47. Rc7 {[%clk 0:00:02]}  Bc3+ {[%clk 0:00:16]} 0-1


[Site "https://www.chess.com"]

[Event "Titled Tuesday Blitz January 17 Late 2023"]
[White "Oparin, Grigoriy"]
[Black "Wieczorek, Oskar"]
[WhiteFideId "24125890"]
[BlackFideId "1133950"]
[WhiteElo "2667"]
[BlackElo "2512"]
[Result "1-0"]
[Round "07"]
[TimeControl "180+2"]
[Date "2023.01.17"]
[WhiteClock "0:00:52"]
[BlackClock "0:00:03"]

1. e4 {[%clk 0:03:00]}  c5 {[%clk 0:02:55]} 2. Nf3 {[%clk 0:03:01]}  e6 {[%clk 0:02:56]} 3. d4 {[%clk 0:03:01]}  cxd4 {[%clk 0:02:57]} 4. Nxd4 {[%clk 0:03:02]}  Nf6 {[%clk 0:02:57]} 5. Nc3 {[%clk 0:03:02]}  d6 {[%clk 0:02:58]} 6. g4 {[%clk 0:03:02]}  e5 {[%clk 0:02:58]} 7. Nf5 {[%clk 0:02:55]}  h5 {[%clk 0:02:58]} 8. Bb5+ {[%clk 0:02:55]}  Nc6 {[%clk 0:02:57]} 9. gxh5 {[%clk 0:02:34]}  Nxe4 {[%clk 0:02:43]} 10. Qf3 {[%clk 0:02:25]}  Bxf5 {[%clk 0:02:22]} 11. Qxf5 {[%clk 0:02:10]}  Nxc3 {[%clk 0:02:23]} 12. bxc3 {[%clk 0:02:11]}  Qa5 {[%clk 0:02:23]} 13. Qd3 {[%clk 0:02:06]}  Rxh5 {[%clk 0:01:49]} 14. Be3 {[%clk 0:01:58]}  d5 {[%clk 0:01:24]} 15. Qxd5 {[%clk 0:01:38]}  Qxc3+ {[%clk 0:01:20]} 16. Bd2 {[%clk 0:01:33]}  Qxa1+ {[%clk 0:00:29]} 17. Ke2 {[%clk 0:01:33]}  Qd4 {[%clk 0:00:28]} 18. Bxc6+ {[%clk 0:01:32]}  Ke7 {[%clk 0:00:27]} 19. Bxb7 {[%clk 0:01:05]}  Qxd5 {[%clk 0:00:18]} 20. Bxd5 {[%clk 0:01:06]}  Rd8 {[%clk 0:00:16]} 21. c4 {[%clk 0:01:06]}  Rh3 {[%clk 0:00:15]} 22. Rb1 {[%clk 0:01:02]}  Kf6 {[%clk 0:00:15]} 23. Be3 {[%clk 0:00:59]}  Rd7 {[%clk 0:00:03]} 24. Rb8 {[%clk 0:00:53]}  Bd6 {[%clk 0:00:03]} 25. Ra8 {[%clk 0:00:53]}  Rxh2 {[%clk 0:00:03]} 26. Bxa7 {[%clk 0:00:53]}  Rh1 {[%clk 0:00:03]} 27. Bxh1 {[%clk 0:00:52]} 1-0


[Site "https://www.chess.com"]

[Event "Titled Tuesday Blitz January 17 Late 2023"]
[White "Svane, Frederik"]
[Black "Iliaguev, Nisim"]
[WhiteFideId "12923044"]
[BlackFideId "2817276"]
[WhiteElo "2600"]
[BlackElo "2402"]
[Result "0-1"]
[Round "07"]
[TimeControl "180+2"]
[Date "2023.01.17"]
[WhiteClock "0:00:12"]
[BlackClock "0:00:47"]

1. e4 {[%clk 0:03:00]}  c6 {[%clk 0:02:59]} 2. d4 {[%clk 0:03:00]}  d5 {[%clk 0:03:00]} 3. exd5 {[%clk 0:03:01]}  cxd5 {[%clk 0:03:01]} 4. c3 {[%clk 0:03:02]}  Nf6 {[%clk 0:03:01]} 5. Nf3 {[%clk 0:03:03]}  Nc6 {[%clk 0:03:01]} 6. Ne5 {[%clk 0:03:02]}  e6 {[%clk 0:02:59]} 7. Bd3 {[%clk 0:03:00]}  Be7 {[%clk 0:02:57]} 8. O-O {[%clk 0:03:00]}  Nxe5 {[%clk 0:02:55]} 9. dxe5 {[%clk 0:03:00]}  Nd7 {[%clk 0:02:56]} 10. Qe2 {[%clk 0:03:00]}  Qc7 {[%clk 0:02:55]} 11. Re1 {[%clk 0:02:59]}  Nc5 {[%clk 0:02:53]} 12. Bc2 {[%clk 0:02:58]}  Bd7 {[%clk 0:02:51]} 13. Nd2 {[%clk 0:02:54]}  O-O-O {[%clk 0:02:51]} 14. Nf3 {[%clk 0:02:52]}  Kb8 {[%clk 0:02:50]} 15. Be3 {[%clk 0:02:43]}  h6 {[%clk 0:02:44]} 16. a4 {[%clk 0:02:39]}  g5 {[%clk 0:02:41]} 17. a5 {[%clk 0:02:33]}  g4 {[%clk 0:02:29]} 18. Nd4 {[%clk 0:02:32]}  h5 {[%clk 0:02:25]} 19. b4 {[%clk 0:02:28]}  Ne4 {[%clk 0:02:23]} 20. Bxe4 {[%clk 0:02:18]}  dxe4 {[%clk 0:02:24]} 21. Nb5 {[%clk 0:01:39]}  Bxb5 {[%clk 0:02:19]} 22. Qxb5 {[%clk 0:01:40]}  Rd5 {[%clk 0:02:14]} 23. Qe2 {[%clk 0:01:37]}  Rhd8 {[%clk 0:02:08]} 24. c4 {[%clk 0:01:28]}  Rd3 {[%clk 0:02:05]} 25. a6 {[%clk 0:01:18]}  b6 {[%clk 0:01:54]} 26. c5 {[%clk 0:01:16]}  b5 {[%clk 0:01:46]} 27. Qc2 {[%clk 0:01:02]}  Qc6 {[%clk 0:01:41]} 28. Ra2 {[%clk 0:00:52]}  h4 {[%clk 0:01:40]} 29. h3 {[%clk 0:00:50]}  gxh3 {[%clk 0:01:39]} 30. gxh3 {[%clk 0:00:51]}  Rg8+ {[%clk 0:01:31]} 31. Kf1 {[%clk 0:00:44]}  Bd8 {[%clk 0:01:24]} 32. Qe2 {[%clk 0:00:41]}  Qd5 {[%clk 0:01:20]} 33. Ra5 {[%clk 0:00:39]}  Bxa5 {[%clk 0:01:09]} 34. bxa5 {[%clk 0:00:40]}  Qxe5 {[%clk 0:01:00]} 35. c6 {[%clk 0:00:29]}  Qh2 {[%clk 0:00:53]} 36. c7+ {[%clk 0:00:21]}  Kc8 {[%clk 0:00:51]} 37. Qc2 {[%clk 0:00:18]}  Rg1+ {[%clk 0:00:47]} 38. Ke2 {[%clk 0:00:17]}  Rxe3+ {[%clk 0:00:48]} 39. Kxe3 {[%clk 0:00:12]}  Rxe1+ {[%clk 0:00:48]} 40. Kd4 {[%clk 0:00:12]}  Qd6+ {[%clk 0:00:47]} 0-1


[Site "https://www.chess.com"]

[Event "Titled Tuesday Blitz January 17 Late 2023"]
[White "Quispe Arteaga, Gabriel"]
[Black "Solon, Nathan"]
[WhiteFideId "32059809"]
[BlackFideId "2017229"]
[WhiteElo "2381"]
[BlackElo "2306"]
[Result "0-1"]
[Round "07"]
[TimeControl "180+2"]
[Date "2023.01.17"]
[WhiteClock "0:00:11"]
[BlackClock "0:00:36"]

1. c4 {[%clk 0:03:00]}  Nf6 {[%clk 0:02:59]} 2. Nc3 {[%clk 0:03:01]}  c5 {[%clk 0:02:58]} 3. Nf3 {[%clk 0:03:01]}  d5 {[%clk 0:02:58]} 4. cxd5 {[%clk 0:03:00]}  Nxd5 {[%clk 0:02:59]} 5. g3 {[%clk 0:03:01]}  Nc6 {[%clk 0:02:59]} 6. Bg2 {[%clk 0:03:02]}  Nc7 {[%clk 0:02:59]} 7. O-O {[%clk 0:02:58]}  e5 {[%clk 0:02:59]} 8. d3 {[%clk 0:02:58]}  Be7 {[%clk 0:02:59]} 9. Be3 {[%clk 0:02:50]}  O-O {[%clk 0:02:51]} 10. Rc1 {[%clk 0:02:50]}  Bd7 {[%clk 0:02:42]} 11. a3 {[%clk 0:02:30]}  Rc8 {[%clk 0:02:40]} 12. Qd2 {[%clk 0:02:13]}  f6 {[%clk 0:02:24]} 13. h4 {[%clk 0:01:50]}  h5 {[%clk 0:02:04]} 14. Nh2 {[%clk 0:01:46]}  Ne6 {[%clk 0:01:54]} 15. Nd5 {[%clk 0:01:44]}  b6 {[%clk 0:01:46]} 16. b4 {[%clk 0:01:14]}  cxb4 {[%clk 0:01:46]} 17. axb4 {[%clk 0:01:14]}  Ned4 {[%clk 0:01:41]} 18. Bxd4 {[%clk 0:01:13]}  Nxd4 {[%clk 0:01:40]} 19. Rxc8 {[%clk 0:01:09]}  Bxc8 {[%clk 0:01:41]} 20. e3 {[%clk 0:00:59]}  Nf5 {[%clk 0:01:32]} 21. Rc1 {[%clk 0:00:49]}  Be6 {[%clk 0:01:30]} 22. Nxe7+ {[%clk 0:00:27]}  Qxe7 {[%clk 0:01:31]} 23. Nf1 {[%clk 0:00:26]}  Rd8 {[%clk 0:01:29]} 24. Qc3 {[%clk 0:00:26]}  Qd6 {[%clk 0:01:23]} 25. Qc7 {[%clk 0:00:25]}  Rc8 {[%clk 0:01:01]} 26. Qxd6 {[%clk 0:00:18]}  Nxd6 {[%clk 0:01:02]} 27. Ra1 {[%clk 0:00:18]}  Nb5 {[%clk 0:00:57]} 28. Nd2 {[%clk 0:00:17]}  Rc3 {[%clk 0:00:42]} 29. Bf1 {[%clk 0:00:16]}  Ra3 {[%clk 0:00:43]} 30. Rc1 {[%clk 0:00:16]}  Nc3 {[%clk 0:00:38]} 31. Nc4 {[%clk 0:00:15]}  Bxc4 {[%clk 0:00:38]} 32. dxc4 {[%clk 0:00:16]}  a5 {[%clk 0:00:37]} 33. bxa5 {[%clk 0:00:15]}  bxa5 {[%clk 0:00:38]} 34. c5 {[%clk 0:00:16]}  Kf7 {[%clk 0:00:36]} 35. c6 {[%clk 0:00:16]}  Ke7 {[%clk 0:00:36]} 36. Bh3 {[%clk 0:00:11]}  Ne2+ {[%clk 0:00:36]} 0-1


[Site "https://www.chess.com"]